fUST/lending_fUST_20251127
["ID","MTS","AMOUNT","RATE_DAILY","PERIOD"]
[394968444,1764223962889,-151.0,0.00027397,7]
[394968445,1764223962898,-151.0,0.00027397,7]
[394968446,1764223962908,-153.200819,0.00027397,7]
[394968447,1764223962918,-151.0,0.00027397,7]
[394968448,1764223962927,-151.0,0.00027397,7]
[394968449,1764223962937,-151.0,0.00027397,7]
[394968450,1764223962947,-153.313791,0.00027397,7]
[394968451,1764223962956,-151.0,0.00027397,7]
[394968452,1764223962966,-151.0,0.00027397,7]
[394968453,1764223962975,-151.0,0.00027397,7]
[394968454,1764223962985,-151.0,0.00027397,7]
[394968455,1764223962994,-161.38333,0.00027397,7]
[394968456,1764223963004,-151.0,0.00027397,7]
[394968457,1764223963014,-151.0,0.00027397,7]
[394968458,1764223963023,-151.0,0.00027397,7]
[394968459,1764223963033,-151.0,0.00027397,7]
[394968460,1764223963041,-151.0,0.00027397,7]
[394968461,1764223963051,-151.0,0.00027397,7]
[394968462,1764223963061,-151.0,0.00027397,7]
[394968463,1764223963070,-151.0,0.00027397,7]
[394968464,1764223963079,-151.0,0.00027397,7]
[394968465,1764223963089,-151.0,0.00027397,7]
[394968466,1764223963098,-151.0,0.00027397,7]
[394968467,1764223963107,-151.0,0.00027397,7]
[394968468,1764223963117,-151.0,0.00027397,7]
[394968469,1764223963126,-260.000048,0.00027397,7]
[394968470,1764223963135,-151.0,0.00027397,7]
[394968471,1764223963144,-151.0,0.00027397,7]
[394968472,1764223963153,-151.0,0.00027397,7]
[394968473,1764223963162,-151.0,0.00027397,7]
[394968474,1764223963171,-151.0,0.00027397,7]
[394968475,1764223963181,-151.0,0.00027397,7]
[394968476,1764223963190,-151.0,0.00027397,7]
[394968477,1764223963199,-151.0,0.00027397,7]
[394968478,1764223963208,-151.0,0.00027397,7]
[394968479,1764223963218,-151.0,0.00027397,7]
[394968480,1764223963228,-151.0,0.00027397,7]
[394968481,1764223963237,-151.0,0.00027397,7]
[394968482,1764223963246,-151.0,0.00027397,7]
[394968483,1764223963260,-151.0,0.00027397,7]
[394968484,1764223963274,-180.205889,0.00027397,7]
[394968485,1764223963284,-151.0,0.00027397,7]
[394968486,1764223963294,-151.0,0.00027397,7]
[394968487,1764223963303,-151.0,0.00027397,7]
[394968488,1764223963314,-151.0,0.00027397,7]
[394968489,1764223963324,-151.0,0.00027397,7]
[394968490,1764223963333,-151.0,0.00027397,7]
[394968491,1764223963344,-151.0,0.00027397,7]
[394968492,1764223963354,-151.0,0.00027397,7]
[394968493,1764223963363,-152.732889,0.00027397,7]
[394968494,1764223963373,-151.0,0.00027397,7]
[394968495,1764223963383,-151.0,0.00027397,7]
[394968496,1764223963393,-151.0,0.00027397,7]
[394968497,1764223963403,-151.0,0.00027397,7]
[394968498,1764223963412,-151.0,0.00027397,7]
[394968499,1764223963422,-151.0,0.00027397,7]
[394968500,1764223963432,-158.453483,0.00027397,7]
[394968501,1764223963441,-151.0,0.00027397,7]
[394968502,1764223963451,-151.0,0.00027397,7]
[394968503,1764223963460,-151.0,0.00027397,7]
[394968504,1764223963470,-151.0,0.00027397,7]
[394968505,1764223963479,-151.0,0.00027397,7]
[394968506,1764223963489,-151.0,0.00027397,7]
[394968507,1764223963499,-151.0,0.00027397,7]
[394968508,1764223963508,-151.0,0.00027397,7]
[394968509,1764223963518,-151.0,0.00027397,7]
[394968510,1764223963527,-151.0,0.00027397,7]
[394968511,1764223963537,-151.0,0.00027397,7]
[394968512,1764223963547,-151.0,0.00027397,7]
[394968513,1764223963556,-151.0,0.00027397,7]
[394968514,1764223963566,-151.0,0.00027397,7]
[394968515,1764223963577,-151.0,0.00027397,7]
[394968516,1764223963587,-151.0,0.00027397,7]
[394968517,1764223963596,-151.0,0.00027397,7]
[394968518,1764223963606,-194.183418,0.00027397,7]
[394968519,1764223963616,-151.0,0.00027397,7]
[394968520,1764223963626,-151.0,0.00027397,7]
[394968521,1764223963636,-151.0,0.00027397,7]
[394968522,1764223963646,-225.026187,0.00027397,7]
[394968523,1764223963655,-639.527621,0.00027397,7]
[394968524,1764223963665,-639.527621,0.00027397,7]
[394968525,1764223963675,-639.527621,0.00027397,7]
[394968526,1764223963685,-639.527621,0.00027397,7]
[394968527,1764223963695,-196.541778,0.00027397,7]
[394968528,1764223963705,-639.527621,0.00027397,7]
[394968529,1764223963715,-639.527621,0.00027397,7]
[394968530,1764223963725,-639.527621,0.00027397,7]
[394968531,1764223963734,-639.527621,0.00027397,7]
[394968532,1764223963745,-639.527621,0.00027397,7]
[394968533,1764223963755,-639.527621,0.00027397,7]
[394968534,1764223963764,-639.527621,0.00027397,7]
[394968535,1764223963773,-639.527621,0.00027397,7]
[394968536,1764223963783,-639.527621,0.00027397,7]
[394968537,1764223963792,-639.527621,0.00027397,7]
[394968538,1764223963801,-639.527621,0.00027397,7]
[394968539,1764223963812,-639.527621,0.00027397,7]
[394968540,1764223963822,-639.527621,0.00027397,7]
[394968541,1764223963831,-639.527621,0.00027397,7]
[394968542,1764223963841,-639.527621,0.00027397,7]
[394968543,1764223963851,-639.527617,0.00027397,7]
[394968544,1764223963860,-151.0,0.00027397,7]
[394968545,1764223963870,-156.638897,0.00027397,7]
[394968546,1764223963879,-151.0,0.00027397,7]
[394968547,1764223963889,-151.0,0.00027397,7]
[394968548,1764223963898,-151.0,0.00027397,7]
[394968549,1764223963908,-151.0,0.00027397,7]
[394968550,1764223963917,-151.0,0.00027397,7]
[394968551,1764223963927,-151.0,0.00027397,7]
[394968552,1764223963936,-151.0,0.00027397,7]
[394968553,1764223963946,-151.0,0.00027397,7]
[394968554,1764223963956,-151.0,0.00027397,7]
[394968555,1764223963967,-151.0,0.00027397,7]
[394968556,1764223963976,-151.0,0.00027397,7]
[394968557,1764223963986,-151.0,0.00027397,7]
[394968558,1764223963995,-151.0,0.00027397,7]
[394968559,1764223964004,-151.0,0.00027397,7]
[394968560,1764223964013,-151.0,0.00027397,7]
[394968561,1764223964023,-151.0,0.00027397,7]
[394968562,1764223964033,-182.949917,0.00027397,7]
[394968563,1764223964042,-496.914192,0.00027397,7]
[394968564,1764223964052,-496.914192,0.00027397,7]
[394968565,1764223964061,-496.914192,0.00027397,7]
[394968566,1764223964071,-496.914192,0.00027397,7]
[394968567,1764223964081,-496.914192,0.00027397,7]
[394968568,1764223964091,-496.914192,0.00027397,7]
[394968569,1764223964100,-496.914192,0.00027397,7]
[394968570,1764223964110,-496.914192,0.00027397,7]
[394968571,1764223964120,-496.914192,0.00027397,7]
[394968572,1764223964130,-496.914192,0.00027397,7]
[394968573,1764223964139,-496.914192,0.00027397,7]
[394968574,1764223964148,-496.914192,0.00027397,7]
[394968575,1764223964158,-496.914192,0.00027397,7]
[394968576,1764223964167,-496.914192,0.00027397,7]
[394968577,1764223964177,-496.914192,0.00027397,7]
[394968578,1764223964187,-496.914192,0.00027397,7]
[394968579,1764223964196,-496.914192,0.00027397,7]
[394968580,1764223964206,-496.914192,0.00027397,7]
[394968581,1764223964215,-496.914192,0.00027397,7]
[394968582,1764223964225,-496.914202,0.00027397,7]
[394968583,1764223964235,-319.720206,0.00027397,7]
[394968584,1764223964246,-319.720206,0.00027397,7]
[394968585,1764223964257,-319.720206,0.00027397,7]
[394968586,1764223964273,-319.720206,0.00027397,7]
[394968587,1764223964285,-319.720206,0.00027397,7]
[394968588,1764223964295,-319.720206,0.00027397,7]
[394968589,1764223964306,-319.720206,0.00027397,7]
[394968590,1764223964315,-319.720206,0.00027397,7]
[394968591,1764223964325,-158.950429,0.00027397,7]
[394968592,1764223964335,-158.950429,0.00027397,7]
[394968593,1764223964346,-158.950429,0.00027397,7]
[394968594,1764223964356,-319.720206,0.00027397,7]
[394968595,1764223964365,-158.950429,0.00027397,7]
[394968596,1764223964374,-319.720206,0.00027397,7]
[394968597,1764223964384,-158.950429,0.00027397,7]
[394968598,1764223964393,-319.720206,0.00027397,7]
[394968599,1764223964402,-158.950429,0.00027397,7]
[394968600,1764223964412,-319.720206,0.00027397,7]
[394968601,1764223964421,-158.950429,0.00027397,7]
[394968602,1764223964431,-319.720206,0.00027397,7]
[394968603,1764223964441,-158.950429,0.00027397,7]
[394968604,1764223964450,-319.720206,0.00027397,7]
[394968605,1764223964459,-158.950429,0.00027397,7]
[394968606,1764223964468,-319.720206,0.00027397,7]
[394968607,1764223964477,-158.950429,0.00027397,7]
[394968608,1764223964487,-319.720206,0.00027397,7]
[394968609,1764223964496,-158.950429,0.00027397,7]
[394968610,1764223964505,-319.720206,0.00027397,7]
[394968611,1764223964515,-158.950429,0.00027397,7]
[394968612,1764223964524,-319.720206,0.00027397,7]
[394968613,1764223964533,-158.950429,0.00027397,7]
[394968614,1764223964542,-319.720206,0.00027397,7]
[394968615,1764223964551,-158.950429,0.00027397,7]
[394968616,1764223964560,-319.720216,0.00027397,7]
[394968617,1764223964570,-158.950429,0.00027397,7]
[394968618,1764223964579,-158.950429,0.00027397,7]
[394968619,1764223964589,-158.950429,0.00027397,7]
[394968620,1764223964598,-158.950429,0.00027397,7]
[394968621,1764223964608,-158.950429,0.00027397,7]
[394968622,1764223964617,-158.950432,0.00027397,7]
[394968623,1764223964626,-318.928649,0.00027397,7]
[394968624,1764223964636,-318.928649,0.00027397,7]
[394968625,1764223964651,-318.928649,0.00027397,7]
[394968626,1764223964662,-318.928649,0.00027397,7]
[394968627,1764223964671,-318.928649,0.00027397,7]
[394968628,1764223964682,-318.928649,0.00027397,7]
[394968629,1764223964692,-318.928649,0.00027397,7]
[394968630,1764223964701,-318.928649,0.00027397,7]
[394968631,1764223964712,-318.928649,0.00027397,7]
[394968632,1764223964865,-2865.961066,0.00027397,7]
[394968633,1764223964874,-318.928649,0.00027397,7]
[394968634,1764223964884,-318.928649,0.00027397,7]
[394968635,1764223964894,-318.928649,0.00027397,7]
[394968636,1764223964903,-318.928649,0.00027397,7]
[394968637,1764223964913,-318.928649,0.00027397,7]
[394968638,1764223964922,-318.928649,0.00027397,7]
[394968639,1764223964932,-318.928649,0.00027397,7]
[394968640,1764223964941,-318.928649,0.00027397,7]
[394968641,1764223964951,-318.928649,0.00027397,7]
[394968642,1764223964961,-318.928649,0.00027397,7]
[394968643,1764223964970,-2865.961066,0.00027397,7]
[394968644,1764223964979,-318.928656,0.00027397,7]
[394968645,1764223964988,-2865.961066,0.00027397,7]
[394968646,1764223964997,-2865.961066,0.00027397,7]
[394968647,1764223965007,-2865.961066,0.00027397,7]
[394968648,1764223965016,-2865.961066,0.00027397,7]
[394968649,1764223965026,-2865.961066,0.00027397,7]
[394968650,1764223965036,-2865.961066,0.00027397,7]
[394968651,1764223965045,-2865.961066,0.00027397,7]
[394968652,1764223965055,-2865.961066,0.00027397,7]
[394968653,1764223965064,-2865.961066,0.00027397,7]
[394968654,1764223965073,-2865.961066,0.00027397,7]
[394968655,1764223965083,-2865.961066,0.00027397,7]
[394968656,1764223965093,-2865.961066,0.00027397,7]
[394968657,1764223965102,-2865.961066,0.00027397,7]
[394968658,1764223965112,-2865.961066,0.00027397,7]
[394968659,1764223965122,-2865.961066,0.00027397,7]
[394968660,1764223965131,-2865.961066,0.00027397,7]
[394968661,1764223965141,-2865.961066,0.00027397,7]
[394968662,1764223965151,-2865.96107241,0.00027397,7]
[394968663,1764223965160,-151.0,0.00027397,7]
[394968664,1764223965170,-151.0,0.00027397,7]
[394968665,1764223965179,-151.0,0.00027397,7]
[394968666,1764223965188,-151.0,0.00027397,7]
[394968667,1764223965197,-151.0,0.00027397,7]
[394968668,1764223965207,-151.0,0.00027397,7]
[394968669,1764223965216,-151.0,0.00027397,7]
[394968670,1764223965225,-156.095877,0.00027397,7]
[394968671,1764223965234,-151.0,0.00027397,7]
[394968672,1764223965244,-516.53761,0.00027397,7]
[394968673,1764223965253,-516.53761,0.00027397,7]
[394968674,1764223965262,-516.53761,0.00027397,7]
[394968675,1764223965275,-516.53761,0.00027397,7]
[394968676,1764223965285,-516.53761,0.00027397,7]
[394968677,1764223965294,-516.53761,0.00027397,7]
[394968678,1764223965304,-516.53761,0.00027397,7]
[394968679,1764223965314,-516.53761,0.00027397,7]
[394968680,1764223965323,-516.53761,0.00027397,7]
[394968681,1764223965332,-516.53761,0.00027397,7]
[394968682,1764223965343,-516.53761,0.00027397,7]
[394968683,1764223965353,-516.53761,0.00027397,7]
[394968684,1764223965362,-516.53761,0.00027397,7]
[394968685,1764223965371,-516.53761,0.00027397,7]
[394968686,1764223965380,-516.53761,0.00027397,7]
[394968687,1764223965389,-516.53761,0.00027397,7]
[394968688,1764223965399,-151.0,0.00027397,7]
[394968689,1764223965408,-516.53761,0.00027397,7]
[394968690,1764223965417,-151.0,0.00027397,7]
[394968691,1764223965427,-516.53761,0.00027397,7]
[394968692,1764223965436,-516.53761,0.00027397,7]
[394968693,1764223965445,-151.0,0.00027397,7]
[394968694,1764223965455,-516.537617,0.00027397,7]
[394968695,1764223965464,-151.0,0.00027397,7]
[394968696,1764223965473,-151.0,0.00027397,7]
[394968697,1764223965483,-151.0,0.00027397,7]
[394968698,1764223965493,-151.0,0.00027397,7]
[394968699,1764223965502,-151.0,0.00027397,7]
[394968700,1764223965512,-151.0,0.00027397,7]
[394968701,1764223965521,-211.064326,0.00027397,7]
[394968702,1764223965530,-2450.090586,0.00027397,7]
[394968703,1764223965539,-2450.090586,0.00027397,7]
[394968704,1764223965549,-2450.090586,0.00027397,7]
[394968705,1764223965558,-2450.090586,0.00027397,7]
[394968706,1764223965567,-2450.090586,0.00027397,7]
[394968707,1764223965576,-2450.090586,0.00027397,7]
[394968708,1764223965588,-2450.090586,0.00027397,7]
[394968709,1764223965597,-2450.090586,0.00027397,7]
[394968710,1764223965606,-2450.090586,0.00027397,7]
[394968711,1764223965615,-2450.090586,0.00027397,7]
[394968712,1764223965624,-2450.090586,0.00027397,7]
[394968713,1764223965633,-2450.090586,0.00027397,7]
[394968714,1764223965642,-2450.090586,0.00027397,7]
[394968715,1764223965651,-2450.090586,0.00027397,7]
[394968716,1764223965660,-2450.090586,0.00027397,7]
[394968717,1764223965669,-2450.090586,0.00027397,7]
[394968718,1764223965678,-2450.090586,0.00027397,7]
[394968719,1764223965687,-2450.090586,0.00027397,7]
[394968720,1764223965695,-2450.090586,0.00027397,7]
[394968721,1764223965704,-2450.09059,0.00027397,7]
[394968722,1764223965713,-300.0,0.00027397,3]
[394968723,1764223965722,-2997.24,0.000274,2]
[394968724,1764223965731,-300.0,0.000274,120]
[394968725,1764223965740,-45802.53523141,0.000275,2]
[394968726,1764223965750,-500.0,0.00027534,2]
[394968727,1764223965759,-418.0,0.00027616,14]
[394968728,1764223965768,-500.0,0.00027671,2]
[394968729,1764223965777,-510.90996638,0.00027671,4]
[394968730,1764223965786,-600.0,0.00027671,3]
[394968731,1764223965795,-747.21717892,0.00027706,26]
[394968732,1764223965804,-500.0,0.00027808,2]
[394968733,1764223965813,-270.331737,0.00027814,20]
[394968734,1764223965822,-157.0,0.00027918,26]
[394968735,1764223965830,-500.0,0.00027945,2]
[394968736,1764223965840,-2262.05297167,0.00027945,2]
[394968737,1764223965849,-290.33247721,0.00027945,3]
[394968738,1764223965858,-15272.92724509,0.00028,2]
[394968739,1764223965867,-300.0,0.00028,120]
[394968740,1764223965877,-2000.0,0.00028025,7]
[394968741,1764223965886,-418.0,0.00028031,14]
[394968742,1764223965895,-2000.0,0.00028034,7]
[394968743,1764223965905,-2000.0,0.00028043,7]
[394968744,1764223965915,-2000.0,0.00028052,7]
[394968745,1764223965924,-2000.0,0.00028061,7]
[394968746,1764223965933,-2000.0,0.00028069,7]
[394968747,1764223965943,-2000.0,0.00028078,7]
[394968748,1764223965951,-500.0,0.00028082,2]
[394968749,1764223965961,-2000.0,0.00028087,7]
[394968750,1764223965970,-2000.0,0.00028096,7]
[394968751,1764223965979,-678.37,0.000281,7]
[394968752,1764223965988,-2000.0,0.00028105,7]
[394968753,1764223965998,-2000.0,0.00028113,7]
[394968754,1764223966009,-160.0,0.0002812,3]
[394968755,1764223966019,-2000.0,0.00028122,7]
[394968756,1764223966028,-2000.0,0.00028131,7]
[394968757,1764223966038,-2000.0,0.0002814,7]
[394968758,1764223966047,-2000.0,0.00028149,7]
[394968759,1764223966056,-2000.0,0.00028157,7]
[394968760,1764223966066,-2000.0,0.00028166,7]
[394968761,1764223966075,-2000.0,0.00028175,7]
[394968762,1764223966084,-2000.0,0.00028184,7]
[394968763,1764223966095,-2000.0,0.00028193,7]
[394968764,1764223966105,-2000.0,0.00028201,7]
[394968765,1764223966115,-2000.0,0.0002821,7]
[394968766,1764223966124,-500.0,0.00028219,2]
[394968767,1764223966133,-2000.0,0.00028219,7]
[394968768,1764223966143,-12543.31402294,0.00028267,2]
[394968769,1764223966152,-500.0,0.00028356,2]
[394968770,1764223966161,-270.331737,0.00028472,60]
[394968771,1764223966170,-528.60944099,0.00028493,2]
[394968772,1764223966179,-562.48,0.00028493,2]
[394968773,1764223966188,-26775.09378755,0.0002876,2]
[394968774,1764223966197,-315.36118,0.00028767,60]
[394968775,1764223966206,-200.0,0.000288,120]
[394968776,1764223966214,-200.0,0.000288,120]
[394968777,1764223966223,-200.0,0.000288,120]
[394968778,1764223966234,-1494.33435785,0.00028862,27]
[394968779,1764223966244,-1000.0,0.0002899,30]
[394968780,1764223966253,-1000.0,0.0002899,30]
[394968781,1764223966262,-1000.0,0.0002899,30]
[394968782,1764223966276,-380.0,0.0002899,30]
[394968783,1764223966285,-901.79473449,0.00028995,2]
[394968784,1764223966294,-418.0,0.00028997,14]
[394968785,1764223966303,-295.04195,0.00029,120]
[394968786,1764223966313,-199.0,0.00029014,32]
[394968787,1764223966322,-3026.51570205,0.00029041,120]
[394968788,1764223966331,-9427.03861719,0.00029131,2]
[394968789,1764223966341,-270.331737,0.00029228,20]
[394968790,1764223966351,-678.37,0.000294,7]
[394968791,1764223966360,-562.48,0.00029589,2]
[394968792,1764223966369,-160.0,0.0002972,4]
[394968793,1764223966378,-437.10027823,0.00029755,2]
[394968794,1764223966387,-200.0,0.000298,2]
[394968795,1764223966396,-200.0,0.000298,3]
[394968796,1764223966406,-1000.0,0.000298,60]
[394968797,1764223966415,-38000.0,0.00029813,10]
[394968798,1764223966423,-38000.0,0.00029822,10]
[394968799,1764223966432,-38000.0,0.0002983,10]
[394968800,1764223966440,-38000.0,0.00029839,10]
[394968801,1764223966449,-38000.0,0.00029848,10]
[394968802,1764223966458,-38000.0,0.00029857,10]
[394968803,1764223966468,-270.331737,0.00029858,60]
[394968804,1764223966477,-507635.46933634,0.0003,2]
[394968805,1764223966485,-2000.0,0.0003,2]
[394968806,1764223966495,-165.46,0.0003,5]
[394968807,1764223966504,-518.50300813,0.0003,2]
[394968808,1764223966515,-269.11955915,0.0003,2]
[394968809,1764223966524,-150.0,0.0003,2]
[394968810,1764223966535,-150.0,0.0003,2]
[394968811,1764223966546,-1000.0,0.0003,2]
[394968812,1764223966555,-323.0,0.0003,3]
[394968813,1764223966564,-341.32563307,0.0003,2]
[394968814,1764223966573,-2997.24,0.0003,2]
[394968815,1764223966582,-1023.29945399,0.0003,30]
[394968816,1764223966591,-8933.98025489,0.0003,30]
[394968817,1764223966601,-2407.45771411,0.0003,120]
[394968818,1764223966610,-3198.03956186,0.0003,120]
[394968819,1764223966620,-353.54508592,0.0003,120]
[394968820,1764223966630,-14885.32624674,0.0003,2]
[394968821,1764223966639,-1000.0,0.0003,120]
[394968822,1764223966648,-1000.0,0.0003,120]
[394968823,1764223966659,-353.54508592,0.0003,10]
[394968824,1764223966668,-1607.69622179,0.0003,2]
[394968825,1764223966677,-353.54508592,0.0003,7]
[394968826,1764223966686,-8671.92249937,0.0003,2]
[394968827,1764223966696,-989.66808738,0.0003,2]
[394968828,1764223966706,-353.54508592,0.0003,30]
[394968829,1764223966716,-400.0,0.0003,120]
[394968830,1764223966725,-1053.07,0.0003,30]
[394968831,1764223966734,-1053.07,0.0003006,30]
[394968832,1764223966744,-1053.07,0.0003012,30]
[394968833,1764223966754,-287.25278973,0.0003013,2]
[394968834,1764223966764,-541.06014015,0.00030136,120]
[394968835,1764223966775,-6250.0,0.00030137,120]
[394968836,1764223966787,-1053.07,0.0003018,30]
[394968837,1764223966796,-674.71691247,0.0003022,2]
[394968838,1764223966806,-1053.07,0.0003024,30]
[394968839,1764223966816,-1053.07,0.000303,30]
[394968840,1764223966828,-1053.07,0.0003036,30]
[394968841,1764223966837,-200.0,0.000304,120]
[394968842,1764223966847,-200.74112,0.000304,120]
[394968843,1764223966857,-200.0,0.000304,120]
[394968844,1764223966867,-1053.07,0.0003042,30]
[394968845,1764223966876,-1053.07,0.0003048,30]
[394968846,1764223966885,-270.331737,0.00030642,20]
[394968847,1764223966895,-211.0,0.00030658,41]
[394968848,1764223966904,-562.48,0.00030684,2]
[394968849,1764223966913,-12543.31402294,0.00030707,2]
[394968850,1764223966922,-353.54508592,0.000309,10]
[394968851,1764223966931,-353.54508592,0.000309,7]
[394968852,1764223966940,-305.42368031,0.0003099,2]
[394968853,1764223966950,-956.26555738,0.00030995,2]
[394968854,1764223966959,-6250.0,0.00031,120]
[394968855,1764223966968,-1630.1,0.00031,14]
[394968856,1764223966977,-210.91,0.00031,7]
[394968857,1764223966986,-924.562667,0.00031028,30]
[394968858,1764223966995,-20281.23881477,0.0003112,2]
[394968859,1764223967005,-270.331737,0.00031244,60]
[394968860,1764223967014,-160.0,0.00031321,5]
[394968861,1764223967024,-562.48,0.0003178,2]
[394968862,1764223967034,-353.54508592,0.000318,10]
[394968863,1764223967044,-43845.8055526,0.000319,2]
[394968864,1764223967054,-200.0,0.00032,120]
[394968865,1764223967063,-228.1968173,0.00032,30]
[394968866,1764223967072,-200.0,0.00032,120]
[394968867,1764223967082,-400.0,0.00032,120]
[394968868,1764223967091,-270.331737,0.00032056,20]
[394968869,1764223967102,-285.89,0.0003225,30]
[394968870,1764223967111,-300.12,0.0003225,120]
[394968871,1764223967120,-192.0890757,0.00032261,30]
[394968872,1764223967130,-301.6071529,0.00032261,30]
[394968873,1764223967139,-2997.24,0.000323,2]
[394968874,1764223967148,-158.78343214,0.00032493,30]
[394968875,1764223967157,-158.78343214,0.00032658,30]
[394968876,1764223967167,-3595.984733,0.00032671,120]
[394968877,1764223967176,-235.155,0.00032719,33]
[394968878,1764223967186,-158.78343214,0.00032795,30]
[394968879,1764223967195,-2000.0,0.000328,9]
[394968880,1764223967204,-2000.0,0.000328,9]
[394968881,1764223967214,-1342.48323764,0.00032849,2]
[394968882,1764223967223,-161.0,0.00032849,56]
[394968883,1764223967232,-5000.0,0.00032855,2]
[394968884,1764223967241,-45000.0,0.0003287,2]
[394968885,1764223967250,-300.0,0.00032876,30]
[394968886,1764223967260,-562.48,0.00032876,2]
[394968887,1764223967276,-402.88791051,0.00032876,2]
[394968888,1764223967285,-450.92280154,0.00032876,2]
[394968889,1764223967294,-500.0,0.00032876,2]
[394968890,1764223967304,-500.0,0.00032876,2]
[394968891,1764223967315,-500.0,0.00032876,2]
[394968892,1764223967325,-500.0,0.00032876,2]
[394968893,1764223967334,-500.0,0.00032876,2]
[394968894,1764223967343,-500.0,0.00032876,2]
[394968895,1764223967356,-500.0,0.00032876,2]
[394968896,1764223967365,-500.0,0.00032876,2]
[394968897,1764223967374,-500.0,0.00032876,2]
[394968898,1764223967383,-500.0,0.00032876,2]
[394968899,1764223967392,-500.0,0.00032876,2]
[394968900,1764223967401,-500.0,0.00032876,2]
[394968901,1764223967411,-500.0,0.00032876,2]
[394968902,1764223967420,-525.98014423,0.00032876,2]
[394968903,1764223967429,-500.0,0.00032876,2]
[394968904,1764223967439,-500.0,0.00032876,2]
[394968905,1764223967448,-500.0,0.00032876,2]
[394968906,1764223967457,-500.0,0.00032876,2]
[394968907,1764223967467,-500.0,0.00032876,2]
[394968908,1764223967476,-500.0,0.00032876,2]
[394968909,1764223967485,-156.5543924,0.00032876,2]
[394968910,1764223967494,-500.0,0.00032876,2]
[394968911,1764223967504,-500.0,0.00032876,2]
[394968912,1764223967513,-500.0,0.00032876,2]
[394968913,1764223967522,-500.0,0.00032876,2]
[394968914,1764223967531,-500.0,0.00032876,2]
[394968915,1764223967541,-500.0,0.00032876,2]
[394968916,1764223967550,-500.0,0.00032876,2]
[394968917,1764223967559,-500.0,0.00032876,2]
[394968918,1764223967568,-500.0,0.00032876,2]
[394968919,1764223967577,-500.0,0.00032876,2]
[394968920,1764223967587,-500.0,0.00032876,2]
[394968921,1764223967598,-500.0,0.00032876,2]
[394968922,1764223967607,-500.0,0.00032876,2]
[394968923,1764223967616,-500.0,0.00032876,2]
[394968924,1764223967625,-500.0,0.00032876,2]
[394968925,1764223967634,-500.0,0.00032876,2]
[394968926,1764223967643,-500.0,0.00032876,2]
[394968927,1764223967653,-500.0,0.00032876,2]
[394968928,1764223967662,-500.0,0.00032876,2]
[394968929,1764223967674,-500.0,0.00032876,2]
[394968930,1764223967683,-500.0,0.00032876,2]
[394968931,1764223967691,-500.0,0.00032876,2]
[394968932,1764223967701,-500.0,0.00032876,2]
[394968933,1764223967710,-500.0,0.00032876,2]
[394968934,1764223967719,-203.16317024,0.00032876,2]
[394968935,1764223967727,-500.0,0.00032876,2]
[394968936,1764223967737,-500.0,0.00032876,2]
[394968937,1764223967746,-500.0,0.00032876,2]
[394968938,1764223967757,-500.0,0.00032876,2]
[394968939,1764223967766,-500.0,0.00032876,2]
[394968940,1764223967775,-500.0,0.00032876,2]
[394968941,1764223967784,-500.0,0.00032876,2]
[394968942,1764223967793,-500.0,0.00032876,2]
[394968943,1764223967802,-500.0,0.00032876,2]